fUSD/lending_fUSD_20250113
["ID","MTS","AMOUNT","RATE_DAILY","PERIOD"]
[348845801,1736805035606,-500.0,9.898e-05,2]
[348845802,1736805035616,-500.0,9.898e-05,2]
[348845803,1736805035625,-500.0,9.898e-05,2]
[348845804,1736805035636,-500.0,9.898e-05,2]
[348845805,1736805035646,-500.0,9.898e-05,2]
[348845806,1736805035656,-500.0,9.898e-05,2]
[348845807,1736805035665,-500.0,9.898e-05,2]
[348845808,1736805035675,-500.0,9.898e-05,2]
[348845809,1736805035684,-500.0,9.898e-05,2]
[348845810,1736805035694,-500.0,9.898e-05,2]
[348845811,1736805035703,-500.0,9.898e-05,2]
[348845812,1736805035712,-500.0,9.898e-05,2]
[348845813,1736805035722,-500.0,9.898e-05,2]
[348845814,1736805035731,-500.0,9.898e-05,2]
[348845815,1736805035741,-500.0,9.898e-05,2]
[348845816,1736805035750,-500.0,9.898e-05,2]
[348845817,1736805035760,-500.0,9.898e-05,2]
[348845818,1736805035769,-500.0,9.898e-05,2]
[348845819,1736805035778,-500.0,9.898e-05,2]
[348845820,1736805035788,-500.0,9.898e-05,2]
[348845821,1736805035797,-500.0,9.898e-05,2]
[348845822,1736805035807,-500.0,9.898e-05,2]
[348845823,1736805035816,-209.56103279,9.898e-05,2]
[348845824,1736805035836,-290.43896721,9.898e-05,2]
[348845825,1736805035845,-3.56103279,9.898e-05,2]
[348845826,1736805035874,-352.2600075,9.898e-05,2]
[348845827,1736805035886,-144.17895971,9.898e-05,2]
[348845828,1736805035896,-500.0,9.898e-05,2]
[348845829,1736805035907,-500.0,9.898e-05,2]
[348845830,1736805035917,-500.0,9.898e-05,2]
[348845831,1736805035927,-502.16659648,9.898e-05,2]
[348845832,1736805035937,-500.0,9.898e-05,2]
[348845833,1736805035947,-500.0,9.898e-05,2]
[348845834,1736805035957,-238.85444382,9.898e-05,2]
[348845835,1736805035969,-261.14555618,9.898e-05,2]
[348845836,1736805035979,-500.0,9.898e-05,2]
[348845837,1736805035989,-500.0,9.898e-05,2]
[348845838,1736805035998,-500.0,9.898e-05,2]
[348845839,1736805036007,-500.0,9.898e-05,2]
[348845840,1736805036017,-500.0,9.898e-05,2]
[348845841,1736805036026,-500.0,9.898e-05,2]
[348845842,1736805036036,-500.0,9.898e-05,2]
[348845843,1736805036049,-500.0,9.898e-05,2]
[348845844,1736805036059,-500.0,9.898e-05,2]
[348845845,1736805036068,-500.0,9.898e-05,2]
[348845846,1736805036078,-500.0,9.898e-05,2]
[348845847,1736805036088,-500.0,9.898e-05,2]
[348845848,1736805036098,-500.0,9.898e-05,2]
[348845849,1736805036107,-500.0,9.898e-05,2]
[348845850,1736805036116,-500.0,9.898e-05,2]
[348845851,1736805036128,-509.46690465,9.898e-05,2]
[348845852,1736805036139,-500.0,9.898e-05,2]
[348845853,1736805036149,-500.0,9.898e-05,2]
[348845854,1736805036159,-502.20310807,9.898e-05,2]
[348845855,1736805036168,-500.0,9.898e-05,2]
[348845856,1736805036177,-500.0,9.898e-05,2]
[348845857,1736805036187,-500.0,9.898e-05,2]
[348845858,1736805036196,-500.0,9.898e-05,2]
[348845859,1736805036205,-500.0,9.898e-05,2]
[348845860,1736805036214,-500.0,9.898e-05,2]
[348845861,1736805036223,-500.0,9.898e-05,2]
[348845862,1736805036233,-500.0,9.898e-05,2]
[348845863,1736805036242,-500.0,9.898e-05,2]
[348845864,1736805036251,-500.0,9.898e-05,2]
[348845866,1736805036261,-500.0,9.898e-05,2]
[348845867,1736805036271,-500.0,9.898e-05,2]
[348845869,1736805036280,-500.0,9.898e-05,2]
[348845871,1736805036288,-500.0,9.898e-05,2]
[348845872,1736805036298,-500.0,9.898e-05,2]
[348845873,1736805036307,-500.0,9.898e-05,2]
[348845874,1736805036318,-500.0,9.898e-05,2]
[348845875,1736805036327,-500.0,9.898e-05,2]
[348845876,1736805036337,-500.0,9.898e-05,2]
[348845877,1736805036348,-500.0,9.898e-05,2]
[348845878,1736805036358,-500.0,9.898e-05,2]
[348845879,1736805036367,-500.0,9.898e-05,2]
[348845880,1736805036377,-500.0,9.898e-05,2]
[348845882,1736805036386,-500.0,9.898e-05,2]
[348845884,1736805036395,-500.0,9.898e-05,2]
[348845886,1736805036404,-500.0,9.898e-05,2]
[348845888,1736805036414,-500.0,9.898e-05,2]
[348845889,1736805036424,-500.0,9.898e-05,2]
[348845891,1736805036434,-500.0,9.898e-05,2]
[348845893,1736805036443,-500.0,9.898e-05,2]
[348845895,1736805036452,-500.0,9.898e-05,2]
[348845897,1736805036461,-500.0,9.898e-05,2]
[348845899,1736805036470,-500.0,9.898e-05,2]
[348845901,1736805036480,-500.0,9.898e-05,2]
[348845903,1736805036489,-500.0,9.898e-05,2]
[348845905,1736805036499,-500.0,9.898e-05,2]
[348845907,1736805036508,-500.0,9.898e-05,2]
[348845908,1736805036517,-500.0,9.898e-05,2]
[348845910,1736805036526,-500.0,9.898e-05,2]
[348845912,1736805036536,-500.0,9.898e-05,2]
[348845914,1736805036545,-500.0,9.898e-05,2]
[348845916,1736805036555,-500.0,9.898e-05,2]
[348845918,1736805036565,-500.0,9.898e-05,2]
[348845920,1736805036574,-500.0,9.898e-05,2]
[348845922,1736805036585,-500.0,9.898e-05,2]
[348845924,1736805036594,-500.0,9.898e-05,2]
[348845926,1736805036605,-749.83,9.898e-05,2]
[348845928,1736805036616,-500.0,9.898e-05,2]
[348845930,1736805036625,-500.0,9.898e-05,2]
[348845932,1736805036634,-500.0,9.898e-05,2]
[348845934,1736805036644,-500.0,9.898e-05,2]
[348845936,1736805036653,-500.0,9.898e-05,2]
[348845938,1736805036663,-500.0,9.898e-05,2]
[348845940,1736805036673,-500.0,9.898e-05,2]
[348845942,1736805036682,-500.0,9.898e-05,2]
[348845943,1736805036693,-503.43576396,9.898e-05,2]
[348845945,1736805036703,-500.0,9.898e-05,2]
[348845947,1736805036712,-501.84707381,9.898e-05,2]
[348845949,1736805036721,-500.0,9.898e-05,2]
[348845951,1736805036731,-500.0,9.898e-05,2]
[348845953,1736805036740,-500.0,9.898e-05,2]
[348845955,1736805036749,-500.0,9.898e-05,2]
[348845957,1736805036758,-483.9511508,9.898e-05,2]
[348845959,1736805036767,-500.0,9.898e-05,2]
[348845961,1736805036777,-500.0,9.898e-05,2]
[348845963,1736805036787,-500.0,9.898e-05,2]
[348845965,1736805036800,-500.0,9.898e-05,2]
[348845967,1736805036809,-500.0,9.898e-05,2]
[348845969,1736805036818,-500.0,9.898e-05,2]
[348845971,1736805036827,-500.0,9.898e-05,2]
[348845973,1736805036837,-500.0,9.898e-05,2]
[348845975,1736805036846,-500.0,9.898e-05,2]
[348845977,1736805036857,-500.0,9.898e-05,2]
[348845979,1736805036866,-501.13959826,9.898e-05,2]
[348845981,1736805036875,-500.0,9.898e-05,2]
[348845983,1736805036884,-501.27359448,9.898e-05,2]
[348845985,1736805036894,-500.0,9.898e-05,2]
[348845987,1736805036903,-500.0,9.898e-05,2]
[348845989,1736805036912,-500.0,9.898e-05,2]
[348845991,1736805036921,-500.0,9.898e-05,2]
[348845992,1736805036931,-500.0,9.898e-05,2]
[348845993,1736805036940,-500.0,9.898e-05,2]
[348845994,1736805036950,-500.0,9.898e-05,2]
[348845995,1736805036960,-500.0,9.898e-05,2]
[348845996,1736805036970,-500.0,9.898e-05,2]
[348845997,1736805036980,-559.81803486,9.898e-05,2]
[348845998,1736805036989,-508.65370036,9.898e-05,2]
[348845999,1736805036999,-500.0,9.898e-05,2]
[348846000,1736805037008,-500.0,9.898e-05,2]
[348846001,1736805037017,-500.0,9.898e-05,2]
[348846002,1736805037026,-500.0,9.898e-05,2]
[348846003,1736805037036,-500.0,9.898e-05,2]
[348846004,1736805037049,-500.0,9.898e-05,2]
[348846005,1736805037058,-578.24,9.898e-05,2]
[348846006,1736805037067,-500.0,9.898e-05,2]
[348846007,1736805037077,-500.0,9.898e-05,2]
[348846008,1736805037087,-500.0,9.898e-05,2]
[348846009,1736805037096,-500.0,9.898e-05,2]
[348846010,1736805037107,-500.0,9.898e-05,2]
[348846011,1736805037116,-500.0,9.898e-05,2]
[348846012,1736805037127,-500.0,9.898e-05,2]
[348846013,1736805037137,-500.0,9.898e-05,2]
[348846014,1736805037147,-500.0,9.898e-05,2]
[348846015,1736805037156,-500.0,9.898e-05,2]
[348846016,1736805037166,-500.0,9.898e-05,2]
[348846017,1736805037175,-500.0,9.898e-05,2]
[348846018,1736805037185,-500.0,9.898e-05,2]
[348846019,1736805037195,-500.0,9.898e-05,2]
[348846020,1736805037206,-500.0,9.898e-05,2]
[348846021,1736805037215,-682.12,9.898e-05,2]
[348846022,1736805037227,-500.0,9.898e-05,2]
[348846023,1736805037236,-500.0,9.898e-05,2]
[348846024,1736805037246,-500.0,9.898e-05,2]
[348846025,1736805037255,-500.0,9.898e-05,2]
[348846026,1736805037265,-500.0,9.898e-05,2]
[348846027,1736805037275,-500.0,9.898e-05,2]
[348846028,1736805037285,-500.0,9.898e-05,2]
[348846029,1736805037294,-500.0,9.898e-05,2]
[348846030,1736805037303,-500.0,9.898e-05,2]
[348846031,1736805037313,-500.0,9.898e-05,2]
[348846032,1736805037322,-500.0,9.898e-05,2]
[348846033,1736805037332,-500.0,9.898e-05,2]
[348846034,1736805037341,-500.0,9.898e-05,2]
[348846035,1736805037353,-500.0,9.898e-05,2]
[348846036,1736805037362,-500.0,9.898e-05,2]
[348846037,1736805037371,-500.0,9.898e-05,2]
[348846038,1736805037380,-500.0,9.898e-05,2]
[348846039,1736805037390,-500.0,9.898e-05,2]
[348846040,1736805037399,-500.0,9.898e-05,2]
[348846041,1736805037410,-500.0,9.898e-05,2]
[348846042,1736805037421,-500.0,9.898e-05,2]
[348846043,1736805037431,-500.0,9.898e-05,2]
[348846044,1736805037442,-506.04,9.898e-05,2]
[348846045,1736805037452,-500.0,9.898e-05,2]
[348846046,1736805037461,-500.0,9.898e-05,2]
[348846047,1736805037470,-500.0,9.898e-05,2]
[348846048,1736805037479,-512.69,9.898e-05,2]
[348846049,1736805037489,-500.0,9.898e-05,2]
[348846050,1736805037498,-500.0,9.898e-05,2]
[348846051,1736805037508,-500.0,9.898e-05,2]
[348846052,1736805037517,-500.0,9.898e-05,2]
[348846053,1736805037528,-500.0,9.898e-05,2]
[348846054,1736805037538,-500.0,9.898e-05,2]
[348846055,1736805037549,-500.0,9.898e-05,2]
[348846056,1736805037558,-500.0,9.898e-05,2]
[348846057,1736805037568,-500.0,9.898e-05,2]
[348846058,1736805037579,-500.0,9.898e-05,2]
[348846059,1736805037588,-500.0,9.898e-05,2]
[348846060,1736805037597,-500.0,9.898e-05,2]
[348846061,1736805037607,-500.0,9.898e-05,2]
[348846062,1736805037616,-500.0,9.898e-05,2]
[348846063,1736805037625,-500.20138688,9.898e-05,2]
[348846064,1736805037635,-500.0,9.898e-05,2]
[348846065,1736805037643,-500.0,9.898e-05,2]
[348846066,1736805037653,-500.0,9.898e-05,2]
[348846067,1736805037662,-500.0,9.898e-05,2]
[348846068,1736805037672,-173.7588863,9.898e-05,2]
[348846069,1736805037681,-500.0,9.898e-05,2]
[348846070,1736805037691,-500.0,9.898e-05,2]
[348846071,1736805037701,-500.0,9.898e-05,2]
[348846072,1736805037710,-500.0,9.898e-05,2]
[348846073,1736805037720,-500.0,9.898e-05,2]
[348846075,1736805037730,-500.0,9.898e-05,2]
[348846077,1736805037739,-500.0,9.898e-05,2]
[348846078,1736805037748,-500.0,9.898e-05,2]
[348846080,1736805037757,-302.77859753,9.898e-05,2]
[348846081,1736805037766,-500.0,9.898e-05,2]
[348846082,1736805037776,-500.0,9.898e-05,2]
[348846083,1736805037785,-500.0,9.898e-05,2]
[348846084,1736805037795,-500.0,9.898e-05,2]
[348846085,1736805037804,-500.0,9.898e-05,2]
[348846086,1736805037813,-500.0,9.898e-05,2]
[348846087,1736805037824,-500.31659009,9.898e-05,2]
[348846088,1736805037833,-500.0,9.898e-05,2]
[348846089,1736805037842,-500.0,9.898e-05,2]
[348846091,1736805037853,-500.0,9.898e-05,2]
[348846093,1736805037862,-500.0,9.898e-05,2]
[348846095,1736805037872,-500.0,9.898e-05,2]
[348846097,1736805037885,-500.0,9.898e-05,2]
[348846098,1736805037895,-500.0,9.898e-05,2]
[348846099,1736805037905,-500.0,9.898e-05,2]
[348846100,1736805037915,-500.0,9.898e-05,2]
[348846101,1736805037925,-500.0,9.898e-05,2]
[348846102,1736805037935,-500.0,9.898e-05,2]
[348846103,1736805037945,-500.0,9.898e-05,2]
[348846104,1736805037955,-500.0,9.898e-05,2]
[348846105,1736805037965,-478.24218409,9.898e-05,2]
[348846106,1736805037974,-500.0,9.898e-05,2]
[348846107,1736805037984,-433.15052888,9.898e-05,2]
[348846108,1736805037995,-252.13485466,9.898e-05,2]
[348846109,1736805038004,-500.0,9.898e-05,2]
[348846110,1736805038014,-500.0,9.898e-05,2]
[348846111,1736805038023,-500.0,9.898e-05,2]
[348846112,1736805038033,-500.0,9.898e-05,2]
[348846113,1736805038046,-500.0,9.898e-05,2]
[348846114,1736805038056,-500.0,9.898e-05,2]
[348846115,1736805038067,-573.64,9.898e-05,2]
[348846116,1736805038077,-500.0,9.898e-05,2]
[348846117,1736805038087,-359.97043443,9.898e-05,2]
[348846118,1736805038099,-586.49,9.898e-05,2]
[348846119,1736805038110,-625.11,9.898e-05,2]
[348846120,1736805038119,-500.0,9.898e-05,2]
[348846121,1736805038130,-500.0,9.898e-05,2]
[348846122,1736805038141,-500.0,9.898e-05,2]
[348846123,1736805038151,-500.0,9.898e-05,2]
[348846124,1736805038162,-500.0,9.898e-05,2]
[348846125,1736805038171,-500.0,9.898e-05,2]
[348846126,1736805038181,-500.0,9.898e-05,2]
[348846127,1736805038191,-500.0,9.898e-05,2]
[348846128,1736805038200,-500.0,9.898e-05,2]
[348846129,1736805038210,-591.7,9.898e-05,2]
[348846130,1736805038220,-500.0,9.898e-05,2]
[348846131,1736805038230,-500.0,9.898e-05,2]
[348846132,1736805038241,-500.0,9.898e-05,2]
[348846133,1736805038252,-309.30639086,9.898e-05,2]
[348846134,1736805038262,-500.0,9.898e-05,2]
[348846135,1736805038272,-500.0,9.898e-05,2]
[348846136,1736805038282,-500.0,9.898e-05,2]
[348846137,1736805038293,-500.0,9.898e-05,2]
[348846138,1736805038303,-500.0,9.898e-05,2]
[348846139,1736805038313,-500.0,9.898e-05,2]
[348846140,1736805038322,-500.0,9.898e-05,2]
[348846141,1736805038333,-500.0,9.898e-05,2]
[348846142,1736805038342,-500.0,9.898e-05,2]
[348846144,1736805038353,-229.5330777,9.898e-05,2]
[348846146,1736805038362,-500.0,9.898e-05,2]
[348846148,1736805038371,-500.0,9.898e-05,2]
[348846150,1736805038381,-500.0,9.898e-05,2]
[348846152,1736805038390,-500.0,9.898e-05,2]
[348846154,1736805038400,-769.45,9.898e-05,2]
[348846155,1736805038409,-500.0,9.898e-05,2]
[348846157,1736805038418,-500.0,9.898e-05,2]
[348846159,1736805038428,-620.62,9.898e-05,2]
[348846161,1736805038439,-500.0,9.898e-05,2]
[348846163,1736805038448,-500.0,9.898e-05,2]
[348846165,1736805038458,-462.33300164,9.898e-05,2]
[348846169,1736805038495,-37.66699836,9.898e-05,2]
[348846170,1736805038505,-439.19532021,9.898e-05,2]
[348846176,1736805038536,-60.80467979,9.898e-05,2]
[348846178,1736805038546,-500.0,9.898e-05,2]
[348846180,1736805038555,-52.4587554,9.898e-05,2]
[348846183,1736805039618,-447.5412446,9.898e-05,2]
[348846184,1736805039628,-500.0,9.898e-05,2]
[348846185,1736805039637,-500.0,9.898e-05,2]
[348846186,1736805039646,-500.0,9.898e-05,2]
[348846187,1736805039655,-500.0,9.898e-05,2]
[348846188,1736805039665,-500.0,9.898e-05,2]
[348846189,1736805039675,-500.0,9.898e-05,2]
[348846190,1736805039687,-539.64570758,9.898e-05,2]
[348846191,1736805039697,-500.0,9.898e-05,2]
[348846192,1736805039707,-500.0,9.898e-05,2]
[348846193,1736805039718,-500.0,9.898e-05,2]
[348846194,1736805039729,-339.58468097,9.898e-05,2]
[348846195,1736805039738,-500.0,9.898e-05,2]
[348846196,1736805039750,-500.0,9.898e-05,2]
[348846197,1736805039761,-500.0,9.898e-05,2]
[348846198,1736805039770,-500.0,9.898e-05,2]
[348846199,1736805039779,-500.0,9.898e-05,2]
[348846200,1736805039789,-500.0,9.898e-05,2]
[348846201,1736805039799,-500.0,9.898e-05,2]
[348846202,1736805039808,-500.0,9.898e-05,2]
[348846203,1736805039818,-500.0,9.898e-05,2]
[348846204,1736805039827,-510.10257132,9.898e-05,2]
[348846207,1736805039837,-500.0,9.898e-05,2]
[348846210,1736805039849,-500.0,9.898e-05,2]
[348846211,1736805039858,-588.55853965,9.898e-05,2]
[348846212,1736805039867,-500.0,9.898e-05,2]
[348846213,1736805039876,-500.0,9.898e-05,2]
[348846215,1736805039886,-500.0,9.898e-05,2]
[348846217,1736805039896,-370.39174154,9.898e-05,2]
[348846218,1736805039906,-522.56,9.898e-05,2]
[348846219,1736805039918,-500.0,9.898e-05,2]
[348846220,1736805039929,-500.0,9.898e-05,2]
[348846221,1736805039939,-500.0,9.898e-05,2]
[348846222,1736805039949,-373.04814854,9.898e-05,2]
[348846223,1736805039958,-500.0,9.898e-05,2]
[348846224,1736805039967,-500.0,9.898e-05,2]
[348846225,1736805039977,-500.0,9.898e-05,2]
[348846226,1736805039986,-458.38021462,9.898e-05,2]
[348846227,1736805040000,-41.61978538,9.898e-05,2]
[348846228,1736805040009,-500.0,9.898e-05,2]
[348846229,1736805040018,-302.3514128,9.898e-05,2]
[348846230,1736805040028,-500.73978275,9.898e-05,2]
[348846231,1736805040038,-500.0,9.898e-05,2]
[348846232,1736805040050,-500.0,9.898e-05,2]
[348846233,1736805040060,-500.0,9.898e-05,2]
[348846234,1736805040069,-451.63909615,9.898e-05,2]
[348846235,1736805040079,-500.0,9.898e-05,2]
[348846236,1736805040090,-500.0,9.898e-05,2]
[348846237,1736805040102,-500.0,9.898e-05,2]
[348846238,1736805040111,-500.0,9.898e-05,2]
[348846239,1736805040120,-500.0,9.898e-05,2]
[348846240,1736805040132,-500.0,9.898e-05,2]
[348846241,1736805040143,-500.0,9.898e-05,2]
[348846242,1736805040152,-500.0,9.898e-05,2]
[348846243,1736805040161,-978.57,9.898e-05,2]
[348846244,1736805040171,-500.0,9.898e-05,2]
[348846245,1736805040180,-500.0,9.898e-05,2]
[348846246,1736805040190,-500.0,9.898e-05,2]
[348846247,1736805040199,-500.0,9.898e-05,2]
[348846248,1736805040208,-500.0,9.898e-05,2]
[348846249,1736805040217,-467.585064,9.898e-05,2]
[348846250,1736805040227,-575.68,9.898e-05,2]
[348846251,1736805040236,-500.0,9.898e-05,2]
[348846252,1736805040245,-500.0,9.898e-05,2]
[348846253,1736805040254,-756.27,9.898e-05,2]
[348846254,1736805040265,-544.24215145,9.899e-05,2]
[348846255,1736805040274,-1607.92,9.899e-05,2]
[348846256,1736805040285,-4134.53,9.899e-05,2]
[348846257,1736805040295,-500.0,9.899e-05,2]
[348846258,1736805040305,-500.0,9.899e-05,2]
[348846259,1736805040315,-500.0,9.899e-05,2]
[348846260,1736805040325,-1264.43,9.899e-05,2]
[348846261,1736805040334,-876.22,9.899e-05,2]
[348846262,1736805040345,-601.178975,9.899e-05,2]
[348846263,1736805040356,-989.08,9.899e-05,2]
[348846264,1736805040365,-579.992813,9.899e-05,2]
[348846265,1736805040374,-159.352991,9.899e-05,2]
[348846266,1736805040383,-160.410654,9.899e-05,2]
[348846267,1736805040392,-2576.67,9.899e-05,2]
[348846268,1736805040401,-25.1793896,9.899e-05,2]
[348846269,1736805040414,-474.8206104,9.899e-05,2]
[348846270,1736805040424,-794.55,9.899e-05,2]
[348846271,1736805040432,-35.6293896,9.899e-05,2]
[348846273,1736805040779,-501.63226964,9.897e-05,2]
[348846274,1736805040790,-276.09773036,9.897e-05,2]
[348846275,1736805040799,-464.3706104,9.899e-05,2]
[348846276,1736805040808,-500.0,9.899e-05,2]
[348846277,1736805040818,-1529.2,9.899e-05,2]
[348846278,1736805040827,-500.0,9.899e-05,2]
[348846279,1736805040837,-500.0,9.899e-05,2]
[348846280,1736805040847,-853.83,9.899e-05,2]
[348846281,1736805040857,-500.0,9.899e-05,2]
[348846282,1736805040866,-500.0,9.899e-05,2]
[348846283,1736805040875,-892.23,9.899e-05,2]
[348846284,1736805040883,-500.0,9.899e-05,2]
[348846285,1736805040893,-540.96,9.899e-05,2]
[348846286,1736805040902,-505.77845107,9.899e-05,2]
[348846287,1736805040911,-1580.45,9.899e-05,2]
[348846288,1736805040920,-500.0,9.899e-05,2]
[348846289,1736805040929,-500.0,9.899e-05,2]
[348846290,1736805040938,-2901.25,9.899e-05,2]
[348846291,1736805040947,-1629.55,9.899e-05,2]
[348846292,1736805040956,-848.07,9.899e-05,2]
[348846293,1736805040965,-500.0,9.899e-05,2]
[348846294,1736805040975,-500.0,9.899e-05,2]
[348846295,1736805040984,-500.0,9.899e-05,2]
[348846296,1736805040993,-500.0,9.899e-05,2]
[348846297,1736805041003,-291.86,9.899e-05,2]
[348846298,1736805041012,-500.0,9.899e-05,2]
[348846299,1736805041021,-467.92765817,9.899e-05,2]
[348846300,1736805041033,-32.07234183,9.899e-05,2]
[348846301,1736805041044,-488.26625817,9.899e-05,2]
[348846302,1736805041070,-11.73374183,9.899e-05,2]
[348846303,1736805041079,-607.87683353,9.899e-05,2]
[348846304,1736805041091,-279.73316647,9.899e-05,2]
[348846305,1736805041100,-1698.98,9.899e-05,2]
[348846306,1736805041109,-500.0,9.899e-05,2]
[348846307,1736805041122,-500.0,9.899e-05,2]
[348846308,1736805041131,-3716.77,9.899e-05,2]
[348846309,1736805041140,-1767.01,9.899e-05,2]
[348846310,1736805041149,-2507.32,9.899e-05,2]
[348846311,1736805041158,-1278.26,9.899e-05,2]
[348846312,1736805041168,-1139.16,9.899e-05,2]
[348846313,1736805041177,-1282.64,9.899e-05,2]
[348846314,1736805041186,-2377.54,9.899e-05,2]
[348846315,1736805041195,-1391.1,9.899e-05,2]
[348846316,1736805041207,-1473.49,9.899e-05,2]
[348846317,1736805041216,-542.72,9.899e-05,2]
[348846318,1736805041225,-918.45,9.899e-05,2]
[348846319,1736805041234,-500.0,9.899e-05,2]
[348846320,1736805041244,-500.0,9.899e-05,2]
[348846321,1736805041254,-897.27,9.899e-05,2]
[348846322,1736805041264,-587.13,9.899e-05,2]
[348846323,1736805041275,-2075.04,9.899e-05,2]
[348846324,1736805041285,-1671.83,9.899e-05,2]
[348846325,1736805041295,-1004.37,9.899e-05,2]
[348846326,1736805041306,-2337.86,9.899e-05,2]
[348846327,1736805041316,-832.89,9.899e-05,2]
[348846328,1736805041326,-156.203226,9.899e-05,2]
[348846329,1736805041335,-2480.85,9.899e-05,2]
[348846330,1736805041343,-578299.589729,9.9e-05,2]
[348846331,1736805041353,-1563.0,9.9e-05,2]
[348846332,1736805041362,-565.0,9.9e-05,2]
[348846333,1736805041371,-600.0,9.9e-05,3]
[348846334,1736805041383,-1288.0,9.9e-05,2]
[348846335,1736805041392,-3610.0,9.945e-05,2]
[348846336,1736805041402,-91827.0,9.945e-05,2]
[348846337,1736805041412,-35373.53360308,9.96e-05,2]
[348846338,1736805041422,-931.08,9.966e-05,2]
[348846339,1736805041432,-803.03,9.966e-05,2]
[348846340,1736805041441,-500.0,9.966e-05,2]
[348846341,1736805041451,-1075.94,9.966e-05,2]
[348846342,1736805041459,-885.87,9.967e-05,2]
[348846343,1736805041470,-2078.01,9.967e-05,2]
[348846344,1736805041479,-500.0,9.967e-05,2]
[348846345,1736805041489,-728.63,9.967e-05,2]
[348846346,1736805041499,-1462.11,9.967e-05,2]
[348846347,1736805041509,-1673.65,9.967e-05,2]
[348846348,1736805041519,-500.0,9.967e-05,2]
[348846349,1736805041528,-1000.0,9.967e-05,2]
[348846350,1736805041538,-989.14,9.967e-05,2]
[348846351,1736805041547,-500.0,9.967e-05,2]
[348846352,1736805041556,-500.98190831,9.967e-05,2]
[348846353,1736805041565,-2525.06,9.967e-05,2]
[348846354,1736805041574,-2149.49,9.967e-05,2]
[348846355,1736805041583,-766.67,9.967e-05,2]
[348846356,1736805041592,-200.0,9.97e-05,2]
[348846357,1736805041600,-1409.81519957,9.97e-05,2]
[348846358,1736805041610,-1030.00059857,9.97e-05,2]
[348846359,1736805041619,-642.9165177,9.97e-05,2]
[348846360,1736805041628,-1267.19959463,9.971e-05,2]
[348846361,1736805041638,-24388.7636092,9.971e-05,2]
[348846362,1736805041648,-3208.14538586,9.971e-05,2]
[348846363,1736805041657,-5648.38314064,9.971e-05,2]
[348846364,1736805041666,-867.58431765,9.971e-05,2]
[348846365,1736805041676,-526.77631734,9.971e-05,2]
[348846366,1736805041685,-200.0,9.971e-05,2]
[348846367,1736805041694,-10930.43157917,9.972e-05,2]
[348846368,1736805041703,-4417.76939509,9.972e-05,2]
[348846369,1736805041712,-1159.03106829,9.972e-05,2]
[348846370,1736805041720,-7758.62176255,9.972e-05,2]
[348846371,1736805041730,-2565.22643854,9.972e-05,2]
[348846372,1736805041739,-9005.79541753,9.972e-05,2]
[348846373,1736805041748,-15672.88350652,9.972e-05,2]
[348846374,1736805041757,-7671.70761265,9.972e-05,2]
[348846375,1736805041766,-19691.66221514,9.972e-05,2]
[348846376,1736805041775,-16911.0,9.973e-05,2]
[348846377,1736805041783,-500.0,9.973e-05,2]
[348846378,1736805041792,-160.85903732,9.973e-05,2]
[348846379,1736805041802,-160.85903732,9.973e-05,2]
[348846380,1736805041811,-160.85903732,9.973e-05,2]
[348846381,1736805041820,-500.0,9.973e-05,2]
[348846382,1736805041829,-260.04959466,9.973e-05,2]
[348846383,1736805041838,-150.86752385,9.973e-05,2]
[348846384,1736805041847,-151.923544,9.973e-05,2]
[348846385,1736805041856,-151.10735558,9.973e-05,2]
[348846386,1736805041866,-159.86942036,9.973e-05,2]
[348846387,1736805041875,-302.83898656,9.973e-05,2]
[348846388,1736805041884,-500.0,9.973e-05,2]
[348846389,1736805041893,-500.0,9.973e-05,2]
[348846390,1736805041902,-299.6835394,9.973e-05,2]
[348846391,1736805041912,-796.07104025,9.973e-05,2]
[348846392,1736805041921,-4521.87534376,9.973e-05,2]
[348846393,1736805041930,-2518.14918847,9.973e-05,2]
[348846394,1736805041939,-200.0,9.973e-05,2]